[Event "January 9 Early 2024"]
[Site "https://www.chess.com"]
[Date "2024.01.11"]
[Round "5"]
[White "Kosteniuk, Alexandra"]
[Black "Kruckenhauser, Arthur"]
[Result "1-0"]
[Board "128"]
[TimeControl "180+1"]
[WhiteFideId "4128125"]
[BlackFideId "1642812"]
[WhiteElo "2759"]
[BlackElo "2557"]
[WhiteTeam "SUI"]
[BlackTeam "AUT"]
[WhiteClock "0:00:34"]
[BlackClock "0:00:16"]

1. e4 {[%clk 0:02:59]}  c5 {[%clk 0:03:00]} 2. d4 {[%clk 0:02:59]}  cxd4 {[%clk 0:02:58]} 3. Qxd4 {[%clk 0:02:59]}  Nc6 {[%clk 0:02:57]} 4. Qd3 {[%clk 0:02:59]}  d6 {[%clk 0:02:56]} 5. Nc3 {[%clk 0:02:58]}  g6 {[%clk 0:02:53]} 6. Nf3 {[%clk 0:02:57]}  Nf6 {[%clk 0:02:51]} 7. Be2 {[%clk 0:02:57]}  Bg7 {[%clk 0:02:51]} 8. O-O {[%clk 0:02:56]}  O-O {[%clk 0:02:51]} 9. Nd5 {[%clk 0:02:56]}  Re8 {[%clk 0:02:45]} 10. c3 {[%clk 0:02:44]}  Be6 {[%clk 0:02:29]} 11. Bg5 {[%clk 0:02:42]}  h6 {[%clk 0:02:28]} 12. Bxf6 {[%clk 0:02:36]}  exf6 {[%clk 0:02:29]} 13. Rfe1 {[%clk 0:02:19]}  f5 {[%clk 0:02:29]} 14. exf5 {[%clk 0:02:13]}  Bxf5 {[%clk 0:02:30]} 15. Qd2 {[%clk 0:02:13]}  Be4 {[%clk 0:02:20]} 16. Rad1 {[%clk 0:02:11]}  Ne5 {[%clk 0:02:06]} 17. Nxe5 {[%clk 0:01:51]}  dxe5 {[%clk 0:02:06]} 18. Bb5 {[%clk 0:01:48]}  Qxd5 {[%clk 0:01:59]} 19. Bxe8 {[%clk 0:01:39]}  Bxg2 {[%clk 0:01:30]} 20. Qxd5 {[%clk 0:01:39]}  Bxd5 {[%clk 0:01:30]} 21. Rxd5 {[%clk 0:01:39]}  Rxe8 {[%clk 0:01:30]} 22. Rd7 {[%clk 0:01:39]}  Bf8 {[%clk 0:01:23]} 23. Rxb7 {[%clk 0:01:34]}  Bc5 {[%clk 0:01:23]} 24. Rd1 {[%clk 0:01:29]}  e4 {[%clk 0:01:23]} 25. Rd5 {[%clk 0:01:16]}  Bb6 {[%clk 0:01:23]} 26. c4 {[%clk 0:01:15]}  e3 {[%clk 0:01:15]} 27. fxe3 {[%clk 0:01:16]}  Bxe3+ {[%clk 0:01:11]} 28. Kf1 {[%clk 0:01:15]}  Bf4 {[%clk 0:01:09]} 29. Rdd7 {[%clk 0:01:08]}  Bxh2 {[%clk 0:01:07]} 30. Rxf7 {[%clk 0:01:08]}  Be5 {[%clk 0:01:08]} 31. Rfe7 {[%clk 0:00:48]}  Rf8+ {[%clk 0:01:07]} 32. Kg2 {[%clk 0:00:38]}  Bd4 {[%clk 0:01:08]} 33. Red7 {[%clk 0:00:37]}  Be5 {[%clk 0:01:03]} 34. c5 {[%clk 0:00:37]}  h5 {[%clk 0:01:03]} 35. c6 {[%clk 0:00:36]}  h4 {[%clk 0:00:17]} 36. c7 {[%clk 0:00:35]}  h3+ {[%clk 0:00:15]} 37. Kxh3 {[%clk 0:00:35]}  Rf3+ {[%clk 0:00:16]} 38. Kg2 {[%clk 0:00:34]}  Rg3+ {[%clk 0:00:16]} 39. Kf2 {[%clk 0:00:34]} 1-0

[Event "January 9 Early 2024"]
[Site "https://www.chess.com"]
[Date "2024.01.11"]
[Round "5"]
[White "Zhu, Jiner"]
[Black "Mazurkiewicz, Michal"]
[Result "0-1"]
[Board "129"]
[TimeControl "180+1"]
[WhiteFideId "8608059"]
[BlackFideId "1124943"]
[WhiteElo "2605"]
[BlackElo "2456"]
[WhiteTeam "CHN"]
[BlackTeam "POL"]
[WhiteClock "0:00:12"]
[BlackClock "0:00:19"]

1. c4 {[%clk 0:02:57]}  Nf6 {[%clk 0:02:59]} 2. Nc3 {[%clk 0:02:56]}  g6 {[%clk 0:03:00]} 3. e4 {[%clk 0:02:56]}  d6 {[%clk 0:03:00]} 4. d4 {[%clk 0:02:57]}  Bg7 {[%clk 0:03:00]} 5. f3 {[%clk 0:02:57]}  O-O {[%clk 0:03:01]} 6. Be3 {[%clk 0:02:57]}  e5 {[%clk 0:02:57]} 7. d5 {[%clk 0:02:56]}  a5 {[%clk 0:02:55]} 8. Nge2 {[%clk 0:02:53]}  Na6 {[%clk 0:02:54]} 9. g4 {[%clk 0:02:42]}  Bxg4 {[%clk 0:02:29]} 10. fxg4 {[%clk 0:02:37]}  Nxg4 {[%clk 0:02:29]} 11. Qd2 {[%clk 0:02:08]}  Qh4+ {[%clk 0:02:27]} 12. Kd1 {[%clk 0:02:07]}  Nxe3+ {[%clk 0:02:23]} 13. Qxe3 {[%clk 0:02:07]}  Nc5 {[%clk 0:02:20]} 14. Kc2 {[%clk 0:01:50]}  f5 {[%clk 0:02:19]} 15. Bg2 {[%clk 0:01:45]}  Bh6 {[%clk 0:01:46]} 16. Qg3 {[%clk 0:01:41]}  Qh5 {[%clk 0:01:41]} 17. exf5 {[%clk 0:01:40]}  Qxf5+ {[%clk 0:01:36]} 18. Kd1 {[%clk 0:01:40]}  Nd3 {[%clk 0:01:27]} 19. Ne4 {[%clk 0:01:27]}  Nxb2+ {[%clk 0:01:17]} 20. Kc2 {[%clk 0:01:27]}  Nxc4 {[%clk 0:01:18]} 21. Kd3 {[%clk 0:01:26]}  Ne3 {[%clk 0:01:12]} 22. Bh3 {[%clk 0:01:26]}  Qh5 {[%clk 0:00:49]} 23. Be6+ {[%clk 0:01:14]}  Kh8 {[%clk 0:00:48]} 24. Nd2 {[%clk 0:00:33]}  c6 {[%clk 0:00:26]} 25. dxc6 {[%clk 0:00:28]}  bxc6 {[%clk 0:00:27]} 26. Nc3 {[%clk 0:00:28]}  d5 {[%clk 0:00:26]} 27. Rae1 {[%clk 0:00:23]}  e4+ {[%clk 0:00:26]} 28. Kd4 {[%clk 0:00:17]}  Nf5+ {[%clk 0:00:23]} 29. Bxf5 {[%clk 0:00:17]}  Rxf5 {[%clk 0:00:23]} 30. Nb3 {[%clk 0:00:12]}  Bg7+ {[%clk 0:00:23]} 31. Ke3 {[%clk 0:00:12]}  Bxc3 {[%clk 0:00:19]} 0-1

[Event "January 9 Early 2024"]
[Site "https://www.chess.com"]
[Date "2024.01.11"]
[Round "5"]
[White "Le, Tuan Minh"]
[Black "Onyshchuk, Volodymyr"]
[Result "1-0"]
[Board "131"]
[TimeControl "180+1"]
[WhiteFideId "12401153"]
[BlackFideId "14114038"]
[WhiteElo "3011"]
[BlackElo "2753"]
[WhiteTeam "VIE"]
[BlackTeam "UKR"]
[WhiteClock "0:00:30"]
[BlackClock "0:00:01"]

1. d4 {[%clk 0:02:54]}  d6 {[%clk 0:02:59]} 2. e4 {[%clk 0:02:52]}  g6 {[%clk 0:02:59]} 3. Bc4 {[%clk 0:02:52]}  Bg7 {[%clk 0:02:59]} 4. Nf3 {[%clk 0:02:52]}  e6 {[%clk 0:02:58]} 5. Bb3 {[%clk 0:02:52]}  Ne7 {[%clk 0:02:57]} 6. O-O {[%clk 0:02:53]}  O-O {[%clk 0:02:55]} 7. Re1 {[%clk 0:02:53]}  h6 {[%clk 0:02:41]} 8. c3 {[%clk 0:02:52]}  b6 {[%clk 0:02:36]} 9. Nbd2 {[%clk 0:02:52]}  Bb7 {[%clk 0:02:36]} 10. Nf1 {[%clk 0:02:53]}  Nd7 {[%clk 0:02:36]} 11. Ng3 {[%clk 0:02:53]}  a6 {[%clk 0:02:35]} 12. h3 {[%clk 0:02:51]}  b5 {[%clk 0:02:30]} 13. Be3 {[%clk 0:02:48]}  Kh7 {[%clk 0:02:22]} 14. Qd2 {[%clk 0:02:44]}  Nb6 {[%clk 0:02:19]} 15. Qe2 {[%clk 0:02:32]}  Qd7 {[%clk 0:02:12]} 16. Rad1 {[%clk 0:02:30]}  a5 {[%clk 0:02:10]} 17. Bc1 {[%clk 0:02:27]}  Ba6 {[%clk 0:01:52]} 18. e5 {[%clk 0:01:51]}  d5 {[%clk 0:01:45]} 19. Qe3 {[%clk 0:01:49]}  b4 {[%clk 0:01:23]} 20. Bc2 {[%clk 0:01:48]}  Nc4 {[%clk 0:01:08]} 21. Qf4 {[%clk 0:01:47]}  bxc3 {[%clk 0:01:09]} 22. bxc3 {[%clk 0:01:47]}  Kh8 {[%clk 0:00:40]} 23. Nh2 {[%clk 0:01:08]}  Ng8 {[%clk 0:00:38]} 24. Ng4 {[%clk 0:01:05]}  Rfb8 {[%clk 0:00:30]} 25. h4 {[%clk 0:01:02]}  Qe7 {[%clk 0:00:21]} 26. h5 {[%clk 0:00:54]}  g5 {[%clk 0:00:12]} 27. Qf3 {[%clk 0:00:54]}  Nb2 {[%clk 0:00:11]} 28. Nf5 {[%clk 0:00:52]}  Qd8 {[%clk 0:00:03]} 29. Nxg7 {[%clk 0:00:27]}  Kxg7 {[%clk 0:00:03]} 30. Qg3 {[%clk 0:00:28]}  Nxd1 {[%clk 0:00:02]} 31. Rxd1 {[%clk 0:00:29]}  Bc4 {[%clk 0:00:02]} 32. f4 {[%clk 0:00:29]}  Kf8 {[%clk 0:00:01]} 33. fxg5 {[%clk 0:00:29]}  hxg5 {[%clk 0:00:01]} 34. h6 {[%clk 0:00:30]} 1-0

[Event "January 9 Early 2024"]
[Site "https://www.chess.com"]
[Date "2024.01.11"]
[Round "5"]
[White "Xu, Yi"]
[Black "Volkov, Maksim"]
[Result "1-0"]
[Board "132"]
[TimeControl "180+1"]
[WhiteFideId "8605564"]
[BlackFideId "54123070"]
[WhiteElo "2868"]
[BlackElo "2661"]
[WhiteTeam "CHN"]
[BlackTeam "RUS"]
[WhiteClock "0:00:22"]
[BlackClock "0:00:14"]

1. e4 {[%clk 0:02:57]}  c5 {[%clk 0:02:57]} 2. Nf3 {[%clk 0:02:57]}  d6 {[%clk 0:02:55]} 3. Bb5+ {[%clk 0:02:54]}  Nd7 {[%clk 0:02:54]} 4. d4 {[%clk 0:02:53]}  cxd4 {[%clk 0:02:53]} 5. Qxd4 {[%clk 0:02:52]}  a6 {[%clk 0:02:53]} 6. Be2 {[%clk 0:02:51]}  Ngf6 {[%clk 0:02:47]} 7. O-O {[%clk 0:02:50]}  g6 {[%clk 0:02:46]} 8. Nc3 {[%clk 0:02:37]}  Bg7 {[%clk 0:02:46]} 9. Rd1 {[%clk 0:02:36]}  O-O {[%clk 0:02:44]} 10. Qe3 {[%clk 0:02:33]}  Qc7 {[%clk 0:02:37]} 11. h3 {[%clk 0:02:33]}  b5 {[%clk 0:02:23]} 12. a4 {[%clk 0:02:24]}  b4 {[%clk 0:02:20]} 13. Nd5 {[%clk 0:02:24]}  Nxd5 {[%clk 0:02:16]} 14. exd5 {[%clk 0:02:25]}  Nc5 {[%clk 0:02:14]} 15. Nd4 {[%clk 0:02:21]}  Bd7 {[%clk 0:01:45]} 16. a5 {[%clk 0:02:18]}  Bf6 {[%clk 0:01:41]} 17. Bf3 {[%clk 0:02:17]}  Rab8 {[%clk 0:01:41]} 18. Qe1 {[%clk 0:01:58]}  Bb5 {[%clk 0:01:31]} 19. Bh6 {[%clk 0:01:57]}  Rfe8 {[%clk 0:01:31]} 20. Qd2 {[%clk 0:01:45]}  Nd7 {[%clk 0:01:24]} 21. g3 {[%clk 0:01:27]}  Ne5 {[%clk 0:01:22]} 22. Bg2 {[%clk 0:01:27]}  Nc4 {[%clk 0:01:17]} 23. Qxb4 {[%clk 0:01:10]}  Bd7 {[%clk 0:00:57]} 24. Qc3 {[%clk 0:01:10]}  Rec8 {[%clk 0:00:38]} 25. b3 {[%clk 0:00:57]}  Ne5 {[%clk 0:00:39]} 26. Qxc7 {[%clk 0:00:57]}  Rxc7 {[%clk 0:00:40]} 27. f4 {[%clk 0:00:52]}  Nc4 {[%clk 0:00:35]} 28. bxc4 {[%clk 0:00:49]}  Rxc4 {[%clk 0:00:36]} 29. c3 {[%clk 0:00:42]}  Rxc3 {[%clk 0:00:35]} 30. Nc6 {[%clk 0:00:30]}  Rb2 {[%clk 0:00:20]} 31. Rab1 {[%clk 0:00:29]}  Rxg3 {[%clk 0:00:12]} 32. Rxb2 {[%clk 0:00:28]}  Bxb2 {[%clk 0:00:13]} 33. Rb1 {[%clk 0:00:28]}  Bxc6 {[%clk 0:00:13]} 34. Rxb2 {[%clk 0:00:26]}  Bb5 {[%clk 0:00:13]} 35. Rc2 {[%clk 0:00:25]}  f6 {[%clk 0:00:14]} 36. Rc8+ {[%clk 0:00:21]}  Kf7 {[%clk 0:00:14]} 37. Rf8# {[%clk 0:00:22]} 1-0

[Event "January 9 Early 2024"]
[Site "https://www.chess.com"]
[Date "2024.01.11"]
[Round "5"]
[White "Chemin, Justo Reinaldo"]
[Black "Huschenbeth, Niclas"]
[Result "1-0"]
[Board "134"]
[TimeControl "180+1"]
[WhiteFideId "2101580"]
[BlackFideId "24604747"]
[WhiteElo "2246"]
[BlackElo "2469"]
[WhiteTeam "BRA"]
[BlackTeam "GER"]
[WhiteClock "0:00:06"]
[BlackClock "0:00:18"]

1. d4 {[%clk 0:03:00]}  Nf6 {[%clk 0:02:59]} 2. Nf3 {[%clk 0:03:00]}  d5 {[%clk 0:02:59]} 3. Bf4 {[%clk 0:03:01]}  c5 {[%clk 0:02:58]} 4. e3 {[%clk 0:03:01]}  e6 {[%clk 0:02:54]} 5. c3 {[%clk 0:03:00]}  Bd6 {[%clk 0:02:54]} 6. Bg3 {[%clk 0:03:00]}  O-O {[%clk 0:02:54]} 7. Nbd2 {[%clk 0:03:00]}  Qc7 {[%clk 0:02:54]} 8. Bd3 {[%clk 0:02:55]}  Nbd7 {[%clk 0:02:53]} 9. Qe2 {[%clk 0:02:44]}  e5 {[%clk 0:02:52]} 10. dxe5 {[%clk 0:02:42]}  Nxe5 {[%clk 0:02:53]} 11. Nxe5 {[%clk 0:02:41]}  Bxe5 {[%clk 0:02:54]} 12. e4 {[%clk 0:02:40]}  Re8 {[%clk 0:02:25]} 13. Bxe5 {[%clk 0:02:09]}  Qxe5 {[%clk 0:02:23]} 14. O-O {[%clk 0:01:47]}  dxe4 {[%clk 0:02:17]} 15. Rfe1 {[%clk 0:01:38]}  Ng4 {[%clk 0:02:08]} 16. g3 {[%clk 0:01:01]}  Qh5 {[%clk 0:01:42]} 17. h4 {[%clk 0:00:53]}  e3 {[%clk 0:01:37]} 18. f3 {[%clk 0:00:27]}  Bd7 {[%clk 0:01:26]} 19. Ne4 {[%clk 0:00:25]}  Ne5 {[%clk 0:01:21]} 20. g4 {[%clk 0:00:18]}  Qxh4 {[%clk 0:01:17]} 21. Qxe3 {[%clk 0:00:14]}  Qg3+ {[%clk 0:01:08]} 22. Nxg3 {[%clk 0:00:13]}  Bc6 {[%clk 0:01:00]} 23. Qxe5 {[%clk 0:00:12]}  Rxe5 {[%clk 0:00:58]} 24. Rxe5 {[%clk 0:00:12]}  Rd8 {[%clk 0:00:58]} 25. Bc4 {[%clk 0:00:11]}  b6 {[%clk 0:00:53]} 26. Re7 {[%clk 0:00:08]}  Bxf3 {[%clk 0:00:39]} 27. Rae1 {[%clk 0:00:09]}  Bc6 {[%clk 0:00:36]} 28. Rxf7 {[%clk 0:00:08]}  Bd5 {[%clk 0:00:32]} 29. Bxd5 {[%clk 0:00:07]}  Rxd5 {[%clk 0:00:33]} 30. Rxa7 {[%clk 0:00:06]}  h5 {[%clk 0:00:25]} 31. Re8+ {[%clk 0:00:06]}  Kh7 {[%clk 0:00:25]} 32. Nxh5 {[%clk 0:00:06]}  Rg5 {[%clk 0:00:18]} 33. Rxg7+ {[%clk 0:00:06]} 1-0

[Event "January 9 Early 2024"]
[Site "https://www.chess.com"]
[Date "2024.01.11"]
[Round "5"]
[White "Krzyzanowski, Marcin"]
[Black "Dushyant Sharma"]
[Result "1-0"]
[Board "135"]
[TimeControl "180+1"]
[WhiteFideId "1132199"]
[BlackFideId "25065130"]
[WhiteElo "2792"]
[BlackElo "2511"]
[WhiteTeam "POL"]
[BlackTeam "IND"]
[WhiteClock "0:00:18"]
[BlackClock "0:00:03"]

1. e4 {[%clk 0:03:00]}  d5 {[%clk 0:02:57]} 2. exd5 {[%clk 0:03:01]}  Nf6 {[%clk 0:02:55]} 3. d4 {[%clk 0:02:58]}  Bg4 {[%clk 0:02:51]} 4. Bb5+ {[%clk 0:02:57]}  c6 {[%clk 0:02:51]} 5. dxc6 {[%clk 0:02:57]}  Nxc6 {[%clk 0:02:51]} 6. Nf3 {[%clk 0:02:51]}  e6 {[%clk 0:02:51]} 7. h3 {[%clk 0:02:48]}  Bh5 {[%clk 0:02:43]} 8. Nc3 {[%clk 0:02:40]}  Be7 {[%clk 0:02:42]} 9. g4 {[%clk 0:02:36]}  Bg6 {[%clk 0:02:41]} 10. Ne5 {[%clk 0:02:36]}  Rc8 {[%clk 0:02:41]} 11. Bxc6+ {[%clk 0:02:16]}  bxc6 {[%clk 0:02:40]} 12. Nxg6 {[%clk 0:02:16]}  hxg6 {[%clk 0:02:37]} 13. Qf3 {[%clk 0:02:01]}  Qb6 {[%clk 0:02:32]} 14. Ne2 {[%clk 0:01:54]}  c5 {[%clk 0:02:09]} 15. c3 {[%clk 0:01:48]}  O-O {[%clk 0:01:03]} 16. O-O {[%clk 0:01:41]}  Nd5 {[%clk 0:00:58]} 17. dxc5 {[%clk 0:01:35]}  Bxc5 {[%clk 0:00:57]} 18. Ng3 {[%clk 0:01:32]}  Rfd8 {[%clk 0:00:42]} 19. a4 {[%clk 0:01:25]}  a5 {[%clk 0:00:41]} 20. h4 {[%clk 0:01:20]}  Bd6 {[%clk 0:00:20]} 21. h5 {[%clk 0:01:14]}  Bxg3 {[%clk 0:00:20]} 22. Qxg3 {[%clk 0:01:13]}  gxh5 {[%clk 0:00:21]} 23. gxh5 {[%clk 0:01:14]}  Rc4 {[%clk 0:00:17]} 24. Bh6 {[%clk 0:01:04]}  g6 {[%clk 0:00:11]} 25. hxg6 {[%clk 0:01:05]}  f5 {[%clk 0:00:11]} 26. Qh3 {[%clk 0:00:25]}  Rg4+ {[%clk 0:00:10]} 27. Kh1 {[%clk 0:00:24]}  Qc6 {[%clk 0:00:05]} 28. f3 {[%clk 0:00:21]}  Ne7 {[%clk 0:00:03]} 29. Bg5 {[%clk 0:00:18]} 1-0

[Event "January 9 Early 2024"]
[Site "https://www.chess.com"]
[Date "2024.01.11"]
[Round "5"]
[White "Coelho, Ramyres Santana"]
[Black "Krivenko, Dion"]
[Result "0-1"]
[Board "137"]
[TimeControl "180+1"]
[WhiteFideId "2120690"]
[BlackFideId "4508378"]
[WhiteElo "2287"]
[BlackElo "2437"]
[WhiteTeam "BRA"]
[BlackTeam "EST"]
[WhiteClock "0:00:01"]
[BlackClock "0:00:59"]

1. e4 {[%clk 0:02:59]}  g6 {[%clk 0:03:00]} 2. d4 {[%clk 0:02:56]}  Bg7 {[%clk 0:02:59]} 3. Nc3 {[%clk 0:02:56]}  c6 {[%clk 0:03:00]} 4. f3 {[%clk 0:02:54]}  d6 {[%clk 0:02:58]} 5. Be3 {[%clk 0:02:54]}  Nd7 {[%clk 0:02:57]} 6. Qd2 {[%clk 0:02:55]}  b5 {[%clk 0:02:58]} 7. O-O-O {[%clk 0:02:55]}  Nb6 {[%clk 0:02:55]} 8. g4 {[%clk 0:02:52]}  h5 {[%clk 0:02:54]} 9. g5 {[%clk 0:02:51]}  d5 {[%clk 0:02:46]} 10. exd5 {[%clk 0:02:45]}  Nxd5 {[%clk 0:02:46]} 11. Nxd5 {[%clk 0:02:44]}  Qxd5 {[%clk 0:02:45]} 12. Kb1 {[%clk 0:02:44]}  Be6 {[%clk 0:02:45]} 13. b3 {[%clk 0:02:39]}  a5 {[%clk 0:02:45]} 14. Bh3 {[%clk 0:02:36]}  Bxh3 {[%clk 0:02:31]} 15. Nxh3 {[%clk 0:02:31]}  e6 {[%clk 0:02:31]} 16. Nf4 {[%clk 0:02:27]}  Qd6 {[%clk 0:02:31]} 17. Nd3 {[%clk 0:02:25]}  Ne7 {[%clk 0:02:27]} 18. Bf4 {[%clk 0:02:18]}  Qxd4 {[%clk 0:02:25]} 19. Ne5 {[%clk 0:02:02]}  Qd5 {[%clk 0:02:08]} 20. Qxd5 {[%clk 0:01:57]}  Nxd5 {[%clk 0:02:07]} 21. Nd3 {[%clk 0:01:10]}  Nc3+ {[%clk 0:02:03]} 22. Kc1 {[%clk 0:01:10]}  Nxd1 {[%clk 0:02:00]} 23. Rxd1 {[%clk 0:01:09]}  O-O {[%clk 0:02:01]} 24. Ne5 {[%clk 0:01:06]}  Bxe5 {[%clk 0:02:01]} 25. Bxe5 {[%clk 0:01:07]}  Rfd8 {[%clk 0:02:01]} 26. Re1 {[%clk 0:01:02]}  Rd5 {[%clk 0:02:01]} 27. Bf6 {[%clk 0:01:01]}  a4 {[%clk 0:01:52]} 28. b4 {[%clk 0:00:56]}  Ra7 {[%clk 0:01:38]} 29. a3 {[%clk 0:00:56]}  Rad7 {[%clk 0:01:38]} 30. Re4 {[%clk 0:00:54]}  Rd1+ {[%clk 0:01:25]} 31. Kb2 {[%clk 0:00:54]}  R1d2 {[%clk 0:01:26]} 32. h4 {[%clk 0:00:53]}  Rf2 {[%clk 0:01:24]} 33. f4 {[%clk 0:00:33]}  Rh2 {[%clk 0:01:23]} 34. Kc1 {[%clk 0:00:25]}  Rxh4 {[%clk 0:01:16]} 35. c4 {[%clk 0:00:24]}  Rh1+ {[%clk 0:01:14]} 36. Kc2 {[%clk 0:00:23]}  h4 {[%clk 0:01:13]} 37. cxb5 {[%clk 0:00:21]}  cxb5 {[%clk 0:01:13]} 38. Re5 {[%clk 0:00:20]}  Rc7+ {[%clk 0:01:08]} 39. Kd3 {[%clk 0:00:18]}  h3 {[%clk 0:01:06]} 40. Rxb5 {[%clk 0:00:18]}  Rc8 {[%clk 0:01:02]} 41. f5 {[%clk 0:00:06]}  gxf5 {[%clk 0:01:00]} 42. Be5 {[%clk 0:00:04]}  Kh7 {[%clk 0:00:58]} 43. Rb7 {[%clk 0:00:03]}  Kg6 {[%clk 0:00:58]} 44. b5 {[%clk 0:00:02]}  h2 {[%clk 0:00:57]} 45. Bxh2 {[%clk 0:00:01]}  Rxh2 {[%clk 0:00:58]} 46. b6 {[%clk 0:00:01]}  Rh3+ {[%clk 0:00:58]} 47. Kd4 {[%clk 0:00:01]}  Rxa3 {[%clk 0:00:59]} 0-1

[Event "January 9 Early 2024"]
[Site "https://www.chess.com"]
[Date "2024.01.11"]
[Round "5"]
[White "Timerkhanov, Alexander"]
[Black "Hejazipour, Mitra"]
[Result "1-0"]
[Board "140"]
[TimeControl "180+1"]
[WhiteFideId "24177938"]
[BlackFideId "12505951"]
[WhiteElo "2669"]
[BlackElo "2466"]
[WhiteTeam "RUS"]
[BlackTeam "FRA"]
[WhiteClock "0:00:30"]
[BlackClock "0:00:05"]

1. d4 {[%clk 0:03:00]}  Nf6 {[%clk 0:02:59]} 2. Bg5 {[%clk 0:03:01]}  Ne4 {[%clk 0:02:54]} 3. h4 {[%clk 0:03:01]}  d5 {[%clk 0:02:52]} 4. Nd2 {[%clk 0:03:01]}  Bf5 {[%clk 0:02:41]} 5. Nxe4 {[%clk 0:02:58]}  dxe4 {[%clk 0:02:38]} 6. e3 {[%clk 0:02:57]}  h6 {[%clk 0:02:36]} 7. Bf4 {[%clk 0:02:55]}  e6 {[%clk 0:02:35]} 8. g4 {[%clk 0:02:40]}  Bh7 {[%clk 0:02:33]} 9. Bg2 {[%clk 0:02:39]}  Bd6 {[%clk 0:02:32]} 10. Ne2 {[%clk 0:02:38]}  Nc6 {[%clk 0:02:26]} 11. Bxd6 {[%clk 0:02:34]}  Qxd6 {[%clk 0:02:23]} 12. c3 {[%clk 0:02:33]}  Ne7 {[%clk 0:02:21]} 13. Qc2 {[%clk 0:02:30]}  Qc6 {[%clk 0:02:11]} 14. Ng3 {[%clk 0:02:21]}  f5 {[%clk 0:02:09]} 15. g5 {[%clk 0:02:20]}  hxg5 {[%clk 0:02:01]} 16. hxg5 {[%clk 0:02:20]}  O-O-O {[%clk 0:02:01]} 17. O-O-O {[%clk 0:02:16]}  Bg6 {[%clk 0:01:56]} 18. Rdg1 {[%clk 0:02:10]}  Qa6 {[%clk 0:01:53]} 19. Qb3 {[%clk 0:02:08]}  Nd5 {[%clk 0:01:50]} 20. Bf1 {[%clk 0:02:01]}  Qb6 {[%clk 0:01:49]} 21. Qxb6 {[%clk 0:01:54]}  Nxb6 {[%clk 0:01:45]} 22. Ne2 {[%clk 0:01:52]}  Nd5 {[%clk 0:01:29]} 23. c4 {[%clk 0:01:52]}  Ne7 {[%clk 0:01:28]} 24. Nf4 {[%clk 0:01:52]}  Kd7 {[%clk 0:01:29]} 25. c5 {[%clk 0:01:48]}  Bf7 {[%clk 0:01:06]} 26. Bc4 {[%clk 0:01:27]}  g6 {[%clk 0:00:43]} 27. b4 {[%clk 0:01:08]}  Rdg8 {[%clk 0:00:39]} 28. Kc2 {[%clk 0:01:05]}  c6 {[%clk 0:00:36]} 29. a4 {[%clk 0:01:01]}  Nc8 {[%clk 0:00:29]} 30. b5 {[%clk 0:00:53]}  cxb5 {[%clk 0:00:27]} 31. axb5 {[%clk 0:00:53]}  Ke7 {[%clk 0:00:27]} 32. Ra1 {[%clk 0:00:44]}  Re8 {[%clk 0:00:23]} 33. Kc3 {[%clk 0:00:37]}  e5 {[%clk 0:00:16]} 34. dxe5 {[%clk 0:00:32]}  Bxc4 {[%clk 0:00:14]} 35. Kxc4 {[%clk 0:00:33]}  Kf7 {[%clk 0:00:14]} 36. Rxh8 {[%clk 0:00:32]}  Rxh8 {[%clk 0:00:14]} 37. e6+ {[%clk 0:00:32]}  Kg7 {[%clk 0:00:14]} 38. Rd1 {[%clk 0:00:30]}  Rd8 {[%clk 0:00:05]} 39. Rd7+ {[%clk 0:00:30]} 1-0

[Event "January 9 Early 2024"]
[Site "https://www.chess.com"]
[Date "2024.01.11"]
[Round "5"]
[White "Salman, Ilhan Serhat"]
[Black "Sieciechowicz, Marcin"]
[Result "0-1"]
[Board "143"]
[TimeControl "180+1"]
[WhiteFideId "6361579"]
[BlackFideId "1130170"]
[WhiteElo "2497"]
[BlackElo "2687"]
[WhiteTeam "TUR"]
[BlackTeam "POL"]
[WhiteClock "0:00:21"]
[BlackClock "0:00:39"]

1. b3 {[%clk 0:03:00]}  e5 {[%clk 0:02:58]} 2. Bb2 {[%clk 0:02:55]}  Nc6 {[%clk 0:02:58]} 3. e3 {[%clk 0:02:54]}  d5 {[%clk 0:02:58]} 4. Bb5 {[%clk 0:02:54]}  Ne7 {[%clk 0:02:58]} 5. Bxe5 {[%clk 0:02:52]}  a6 {[%clk 0:02:58]} 6. Bxc6+ {[%clk 0:02:52]}  Nxc6 {[%clk 0:02:59]} 7. Bb2 {[%clk 0:02:52]}  Qg5 {[%clk 0:02:53]} 8. Qf3 {[%clk 0:02:23]}  Bg4 {[%clk 0:02:50]} 9. Qf4 {[%clk 0:02:18]}  Qxf4 {[%clk 0:02:46]} 10. exf4 {[%clk 0:02:19]}  O-O-O {[%clk 0:02:41]} 11. d4 {[%clk 0:02:05]}  Bb4+ {[%clk 0:02:26]} 12. c3 {[%clk 0:02:01]}  Bd6 {[%clk 0:02:16]} 13. f3 {[%clk 0:01:51]}  Rde8+ {[%clk 0:02:11]} 14. Kf2 {[%clk 0:01:50]}  Bf5 {[%clk 0:02:05]} 15. Ne2 {[%clk 0:01:37]}  Bd3 {[%clk 0:02:03]} 16. Re1 {[%clk 0:01:35]}  Bxe2 {[%clk 0:02:01]} 17. Rxe2 {[%clk 0:01:34]}  Rxe2+ {[%clk 0:02:00]} 18. Kxe2 {[%clk 0:01:35]}  Bxf4 {[%clk 0:02:00]} 19. g3 {[%clk 0:01:19]}  Re8+ {[%clk 0:01:58]} 20. Kf1 {[%clk 0:01:14]}  Bg5 {[%clk 0:01:38]} 21. Na3 {[%clk 0:01:08]}  Kd7 {[%clk 0:01:26]} 22. Re1 {[%clk 0:01:06]}  Rxe1+ {[%clk 0:01:24]} 23. Kxe1 {[%clk 0:01:07]}  Ne7 {[%clk 0:01:19]} 24. Ke2 {[%clk 0:01:07]}  Nf5 {[%clk 0:01:19]} 25. f4 {[%clk 0:01:03]}  Be7 {[%clk 0:01:18]} 26. Nc2 {[%clk 0:01:02]}  Nd6 {[%clk 0:01:17]} 27. Ne3 {[%clk 0:00:59]}  c6 {[%clk 0:01:17]} 28. c4 {[%clk 0:00:54]}  dxc4 {[%clk 0:01:13]} 29. Nxc4 {[%clk 0:00:54]}  Bf6 {[%clk 0:01:11]} 30. Ne5+ {[%clk 0:00:53]}  Ke6 {[%clk 0:01:05]} 31. Ke3 {[%clk 0:00:45]}  Kd5 {[%clk 0:00:59]} 32. Ba3 {[%clk 0:00:22]}  Bxe5 {[%clk 0:00:57]} 33. dxe5 {[%clk 0:00:22]}  Nf5+ {[%clk 0:00:53]} 34. Kd3 {[%clk 0:00:22]}  h5 {[%clk 0:00:53]} 35. Bf8 {[%clk 0:00:20]}  g6 {[%clk 0:00:53]} 36. Bb4 {[%clk 0:00:20]}  c5 {[%clk 0:00:51]} 37. Be1 {[%clk 0:00:21]}  b5 {[%clk 0:00:52]} 38. h3 {[%clk 0:00:22]}  c4+ {[%clk 0:00:50]} 39. bxc4+ {[%clk 0:00:21]}  bxc4+ {[%clk 0:00:51]} 40. Ke2 {[%clk 0:00:21]}  Ke4 {[%clk 0:00:50]} 41. g4 {[%clk 0:00:21]}  hxg4 {[%clk 0:00:51]} 42. hxg4 {[%clk 0:00:22]}  Nd4+ {[%clk 0:00:51]} 43. Kd2 {[%clk 0:00:21]}  Nf3+ {[%clk 0:00:51]} 44. Ke2 {[%clk 0:00:22]}  Nxe1 {[%clk 0:00:51]} 45. f5 {[%clk 0:00:22]}  Nd3 {[%clk 0:00:39]} 46. e6 {[%clk 0:00:21]}  Nf4+ {[%clk 0:00:39]} 47. Kd2 {[%clk 0:00:22]}  Nxe6 {[%clk 0:00:40]} 48. fxe6 {[%clk 0:00:21]}  fxe6 {[%clk 0:00:40]} 49. Kc3 {[%clk 0:00:21]}  Kd5 {[%clk 0:00:40]} 50. g5 {[%clk 0:00:21]}  Kc5 {[%clk 0:00:39]} 51. a4 {[%clk 0:00:21]}  a5 {[%clk 0:00:39]} 0-1